Cogmind - Beta 17 @@@ ROGUE MODE // 2026.07.06 @ 21:09:51 Player: KuFish Result: Destroyed by L-31 Rogue with Katana Performance ------------- Evolutions (1) 500 Regions Visited (3) 600 Robots Destroyed (26) 130 Value Destroyed (661) 661 Prototype IDs (2) 40 Alien Tech Used (0) 0 Bonus (223) 223 TOTAL SCORE: 2154 Bonus ------- Follower Combat Kills 223 Cogmind --------- Core Integrity 0/400 Matter 265/300 Energy 179/460 System Corruption 5% Temperature Cool (0) Movement Treading (240) Ox1 Location -9/Storage Parts ------- > --- POWER (2) -------- Heavy Ion Engine Heavy Ion Engine > --- PROPULSION (2) --- Light Treads > --- UTILITY (3) ------ Small Storage Unit Structural Scanner > --- WEAPON (2) ------- Hammer Katana > --- INVENTORY (8) ---- Beam Rifle Beamcaster Peak State ------------ > --- POWER ------------ Heavy Ion Engine Light Angular Momentum Engine > --- PROPULSION ------- (None) > --- UTILITY ---------- Small Storage Unit Structural Scanner Light Armor Plating > --- WEAPON ----------- Beamcaster Katana > --- INVENTORY -------- Heavy Ion Engine Heavy Ion Engine Beam Rifle [Rating: 19] Favorites ----------- Power Light Ion Engine Engine Light Ion Engine Propulsion Aluminum Leg Treads Light Treads Leg Aluminum Leg Utility Small Storage Unit Device Structural Scanner Storage Small Storage Unit Protection Light Armor Plating Weapon Assault Rifle Energy Gun Beamcaster Ballistic Gun Assault Rifle Impact Weapon Hammer Slashing Weapon Katana Build | -11 -10 -9 -9 ------- Run | Yrd Mat Mat Sto Slots Evolved 2 | . . 2 . Power 1 | . . 1 . Propulsion . | . . . . Utility 1 | . . 1 . Weapon . | . . . . Parts Attached 30 | 5 1 . 24 Power 9 | 1 . . 8 Engine 9 | 1 . . 8 Core . | . . . . Reactor . | . . . . Propulsion 6 | 2 . . 4 Treads 4 | . . . 4 Leg 2 | 2 . . . Wheel . | . . . . Hover . | . . . . Flight . | . . . . Utility 5 | . 1 . 4 Device 1 | . . . 1 Storage 2 | . 1 . 1 Processor . | . . . . Hackware . | . . . . Protection 2 | . . . 2 Artifact . | . . . . Weapon 10 | 2 . . 8 Energy Gun 1 | . . . 1 Energy Cannon . | . . . . Ballistic Gun 7 | 2 . . 5 Ballistic Cannon . | . . . . Launcher . | . . . . Special Weapon . | . . . . Impact Weapon 1 | . . . 1 Slashing Weapon 1 | . . . 1 Piercing Weapon . | . . . . Special Melee Weapon . | . . . . Unidentified Prototypes 2 | . . . 2 Parts Lost 14 | . . . 14 Power 7 | . . . 7 Propulsion 1 | . . . 1 Utility 2 | . . . 2 Weapon 4 | . . . 4 Highest Loss Streak 6 | . . . 6 To Critical Strikes 1 | . . . 1 Average Backups 5 | 2 4 4 5 Power 1 | . 1 1 1 Propulsion . | 1 2 2 . Utility . | . . . . Weapon 2 | . 1 1 3 Tool/Special . | . . . . Unused Backups 3 | . . . 3 Power 1 | . . . 1 Propulsion . | . . . . Utility . | . . . . Weapon 2 | . . . 2 Tool/Special . | . . . . Average Slot Usage (%) 80 | . 74 66 83 Engine 16 | . 14 11 17 Treads 8 | . . . 10 Leg 11 | . 28 22 7 Device 8 | . . . 10 Storage 11 | . 3 11 12 Protection 1 | . . . 2 Ballistic Gun 20 | . 28 22 19 Peak Build Rating 19 | 5 6 6 19 Average Rating 9 | 3 5 6 10 On Entrance 4 | . 5 6 6 Avg Prop Armor Cover (%) . | . . . . Naked Turns . | . . . . Heaviest Build 27 | 7 12 12 27 Greatest Support 40 | 20 20 20 40 Greatest Overweight (x) 8 | 2 . . 8 Average Overweight (x) . | . . . . Largest Inventory Capacity 8 | 5 8 8 8 Average Capacity 7 | 5 5 8 8 Most Carried 8 | 5 5 6 8 Average Carried 5 | 3 4 4 5 Final Capacity 8 | 5 8 8 8 Final Carried 6 | 5 4 6 2 Class Distribution -------------------- 76% | Mutant 23% | Scavenger-Mutant Dominant Class ---------------- Mutant | -10/Materials Mutant | -9/Materials Mutant | -9/Storage Resources | -11 -10 -9 -9 ----------- Run | Yrd Mat Mat Sto Matter Collected 930 | 237 47 . 646 Remotely . | . . . . Salvage Created 898 | . 47 . 851 Parts 62 | . 1 . 61 Haulers Intercepted . | . . . . Recyclers Shooed . | . . . . Parts Field Recycled . | . . . . Retrieved Matter . | . . . . Parts Self-Destructed . | . . . . Prevented . | . . . . Parts Restored . | . . . . Kills | -11 -10 -9 -9 ------- Run | Yrd Mat Mat Sto Combat Hostiles Destroyed 24 | . 1 . 23 Melee 1 | . . . 1 Guns 23 | . 1 . 22 Classes Destroyed 5 | . 1 . 4 Worker 2 | . . . 2 Swarmer 9 | . . . 9 Grunt 8 | . 1 . 7 Brawler 2 | . . . 2 Sentry 5 | . . . 5 Best Kill Streak 5 | . 1 . 5 Combat Bots Only 5 | . 1 . 5 Max Kills in Single Turn 2 | . 1 . 2 Gunslinging 1 | . . . 1 Exploded . | . . . . Melee 1 | . . . 1 Uniques/NPCs Destroyed . | . . . . Combat | -11 -10 -9 -9 -------- Run | Yrd Mat Mat Sto Hostile Shots Fired 213 | . 3 . 210 Missed 60 | . . . 60 Hits 153 | . 3 . 150 Melee 23 | . . . 23 Projectile 130 | . 3 . 127 Critical Strikes 7 | . . . 7 Damage Taken 2286 | . 30 . 2256 Core 437 | . 10 . 427 Absorbed by Shields . | . . . . Core Remaining (%) 98 | 100 96 . . Volleys Fired 90 | . 4 . 86 Largest 2 | . 2 . 2 Hottest 75 | . 40 . 75 Shots Fired 174 | . 8 . 166 Gun 174 | . 8 . 166 Cannon . | . . . . Launcher . | . . . . Special . | . . . . Kinetic 172 | . 8 . 164 Thermal 2 | . . . 2 Explosive . | . . . . Electromagnetic . | . . . . Robot Hit Streak 13 | . 1 . 13 Robot Miss Streak 5 | . 2 . 5 Penetration Max . | . . . . Secondary Targets 6 | . . . 6 Max Gunslinging Chain 1 | . . . 1 Shots Hit Robots 111 | . 3 . 108 Core Hits 42 | . 1 . 41 Critical Kills . | . . . . Critical Parts Destroyed 5 | . 1 . 4 Critical Strikes 7 | . 1 . 6 Destroy 5 | . 1 . 4 Sever 2 | . . . 2 Melee Attacks 14 | . . . 14 Impact . | . . . . Slashing 14 | . . . 14 Piercing . | . . . . Sneak Attacks 2 | . . . 2 Combat Hostiles . | . . . . Follow-up Attacks . | . . . . Damage Inflicted 1677 | . 41 . 1636 Guns 1333 | . 41 . 1292 Cannons . | . . . . Explosions . | . . . . Melee 343 | . . . 343 Ramming 1 | . . . 1 Kinetic 1292 | . 41 . 1251 Thermal 41 | . . . 41 Explosive . | . . . . Electromagnetic . | . . . . Impact . | . . . . Slashing 343 | . . . 343 Piercing . | . . . . Highest Corruption 5 | . . . 5 Average Corruption 2 | . . . 2 Corruption Purged . | . . . . Corruption Blocked . | . . . . Effects 12 | . . . 12 Message Errors 1 | . . . 1 Matter Fused 2 | . . . 2 Energy Discharges 4 | . . . 4 Data Loss (major) 2 | . . . 2 Misfires 2 | . . . 2 Weapon Failures 1 | . . . 1 Overload Shots . | . . . . Overflow Damage 39 | . . . 39 Projectiles . | . . . . Explosions . | . . . . Melee 39 | . . . 39 Knockbacks . | . . . . Impact . | . . . . Kinetic . | . . . . Secondary . | . . . . Self-Inflicted Damage . | . . . . Shots . | . . . . Rammed 2 | . . . 2 Targets Rammed 2 | . . . 2 Kicked . | . . . . Crushed . | . . . . Highest Temperature 221 | . . . 221 Average Temperature 61 | . . . 61 Received Heat Transfer 666 | . 18 . 648 Siege Activations . | . . . . Martial Activations . | . . . . Shielding Activations . | . . . . Robots Disrupted . | . . . . Combat Hostiles . | . . . . Robots Corrupted . | . . . . Combat Hostiles . | . . . . Parts Fried . | . . . . Impact Corruptions . | . . . . Robots Melted . | . . . . Combat Hostiles . | . . . . Parts Melted . | . . . . Heat Transferred 74 | . . . 74 Parts Sabotaged . | . . . . Parts Stolen . | . . . . Parts Stripped . | . . . . Power Chain Reactions . | . . . . Alert | -11 -10 -9 -9 ------- Run | Yrd Mat Mat Sto Maximum Alert Level 1 | . . . 1 Low Security (%) 70 | 100 100 100 61 Level 1 29 | . . . 38 Level 2 . | . . . . Level 3 . | . . . . Level 4 . | . . . . Level 5 . | . . . . High Security . | . . . . Max Security . | . . . . Peak Influence 353 | . 30 3 353 Initial 3 | . . 3 . Average 104 | . 2 1 137 Influence Increases 820 | . 30 . 790 Destroy 0b10 Robot/C 620 | . 20 . 600 Destroy 0b10 Robot/NC 15 | . . . 15 Destroy Leader 150 | . 10 . 140 Allied During Kill 12 | . . . 12 Successful Hack 5 | . . . 5 Destroy Structure 3 | . . . 3 Lose Combat Pursuer 15 | . . . 15 Influence Decreases 534 | . 20 10 504 Entered New Map 7 | . . 7 . Time Decay 347 | . 20 3 324 Lost Part 140 | . . . 140 Lost Ally 40 | . . . 40 Squads Dispatched 8 | . 1 . 7 Investigation . | . . . . Extermination . | . . . . Reinforcement 1 | . 1 . . Assault 2 | . . . 2 Garrison 5 | . . . 5 Intercept . | . . . . Searches Triggered . | . . . . Construction Impeded . | . . . . Haulers Reinforced . | . . . . Active Scanning Responses . | . . . . Cargo Convoy Interrupts . | . . . . Stealth | -11 -10 -9 -9 --------- Run | Yrd Mat Mat Sto Distress Signals 2 | . . . 2 Communications Jammed . | . . . . Distress Signals . | . . . . Times Spotted 41 | . 2 . 39 Peak Tracking Total 10 | . 2 . 10 Tactical Retreats 1 | . . . 1 Traps | -11 -10 -9 -9 ------- Run | Yrd Mat Mat Sto Traps Triggered 3 | . . . 3 Indirectly . | . . . . Trap Hack Attempts . | . . . . Triggered . | . . . . Disarmed . | . . . . Reprogrammed . | . . . . Reused . | . . . . Traps Extracted . | . . . . Installed . | . . . . Triggered . | . . . . Machines | -11 -10 -9 -9 ---------- Run | Yrd Mat Mat Sto Machines Disabled . | . . . . Max in Single Turn . | . . . . Machines Repaired . | . . . . Machines Dismantled . | . . . . Machines Sabotaged . | . . . . Overloaded Fab Kills . | . . . . Hacking | -11 -10 -9 -9 --------- Run | Yrd Mat Mat Sto Machines Accessed 3 | . . . 3 Terminals 2 | . . . 2 Fabricators . | . . . . Repair Stations . | . . . . Recycling Units 1 | . . . 1 Scanalyzers . | . . . . Garrison Access . | . . . . Total Hacks 4 | . . . 4 Successful 3 | . . . 3 Failed 1 | . . . 1 Catastrophic 1 | . . . 1 Database Lockouts . | . . . . Manual . | . . . . Terminals 3 | . . . 3 Fabricators . | . . . . Repair Stations . | . . . . Recycling Units 1 | . . . 1 Scanalyzers . | . . . . Garrison Access . | . . . . Terminal Hacks 2 | . . . 2 Robot Analysis 1 | . . . 1 Alert Level 1 | . . . 1 Fabricator Hacks . | . . . . Repair Station Hacks . | . . . . Recycling Unit Hacks 1 | . . . 1 Report Inventory 1 | . . . 1 Scanalyzer . | . . . . Garrison Access Hacks . | . . . . Unauthorized Hacks . | . . . . Terminals . | . . . . Fabricators . | . . . . Repair Stations . | . . . . Recycling Units . | . . . . Scanalyzers . | . . . . Garrison Access . | . . . . Data Cores Recovered . | . . . . Used . | . . . . Hacking Detections . | . . . . Full Trace Events . | . . . . Feedback Events . | . . . . Feedback Blocked . | . . . . Robot Schematics Acquired . | . . . . Robots Built . | . . . . Authchips . | . . . . Time . | . . . . Total Robot Build Rating . | . . . . Part Schematics Acquired . | . . . . Parts Built . | . . . . Authchips . | . . . . Time . | . . . . Total Part Build Rating . | . . . . Part Studies Acquired . | . . . . Parts Repaired . | . . . . Time . | . . . . Parts Recycled . | . . . . Recycled Matter . | . . . . Retrieved Matter . | . . . . Retrieved Components . | . . . . Parts Scanalyzed . | . . . . Part Schematics Acquired . | . . . . Parts Damaged . | . . . . Bothacking | -11 -10 -9 -9 ------------ Run | Yrd Mat Mat Sto Used RIF Installer . | . . . . Robots Hacked . | . . . . Non-combat . | . . . . Combat . | . . . . Robot Hacks Applied . | . . . . Relay Couplers Released . | . . . . Fabnet Peak Effective % . | . . . . Robots Rewired . | . . . . Allies Hacked . | . . . . Hacks Repelled . | . . . . Allies | -11 -10 -9 -9 -------- Run | Yrd Mat Mat Sto Total Allies 2 | . . . 2 Largest Group 2 | . . . 2 Highest-Rated Group 62 | . . . 62 Highest-Rated Ally 31 | . . . 31 Total Orders . | . . . . Ally Attacks 44 | . . . 44 Total Damage 688 | . . . 688 Kills 8 | . . . 8 Allies Corrupted . | . . . . Allies Melted . | . . . . Intel | -11 -10 -9 -9 ------- Run | Yrd Mat Mat Sto Active Infowar (turns) 824 | . . . 824 Structural 824 | . . . 824 Robot Analysis Total 1 | . . . 1 Derelict Logs Recovered . | . . . . Drone Launches . | . . . . Drone Recoveries . | . . . . Exploration | -11 -10 -9 -9 ------------- Run | Yrd Mat Mat Sto Turns Passed 1119 | 62 160 49 848 Spaces Moved 528 | 44 123 40 321 Core 19 | 11 . . 8 Treads 152 | . . . 152 Legs 357 | 33 123 40 161 Wheels . | . . . . Hover . | . . . . Flight . | . . . . Fastest Speed 50 | 50 120 120 120 Average Speed 138 | 109 120 120 151 Slowest Speed 450 | 150 120 120 450 Overloaded Moves . | . . . . Propulsion Burnouts . | . . . . Robots Hopped . | . . . . Potential Cave-ins . | . . . . Cave-ins Triggered . | . . . . Exploration Rate (%) 18 | 4 33 3 32 Regions Visited 3 Branch Regions 1 Pre-discovered Areas . | . . . . Known Exits Taken . | . . . . Unknown Exits Taken 3 | 1 1 1 . Scrap Searched . | . . . . Spaces Dug . | . . . . Terrain Destroyed . | . . . . Melee . | . . . . Projectile . | . . . . AOE . | . . . . Terrain Rammed . | . . . . Walls Destroyed . | . . . . Machines Disabled . | . . . . Actions | -11 -10 -9 -9 --------- Run | Yrd Mat Mat Sto Total 724 | 58 127 41 498 Wait 18 | . . . 18 Move 525 | 43 122 39 321 Hop . | . . . . Pick Up 34 | 10 . 2 22 Fast Attach . | . . . . Attach 28 | 5 1 . 22 Detach . | . . . . Swap 5 | . . . 5 Drop 8 | . . . 8 Fire 90 | . 4 . 86 Melee 14 | . . . 14 Ram . | . . . . Kick . | . . . . Crush 2 | . . . 2 Escape Stasis . | . . . . Rewire . | . . . . Trap . | . . . . Miscellaneous . | . . . . Route ------- -11/Scrapyard -10/Materials -9/Materials -9/Storage History --------- Turn | Location | Event 2 | -11/Scrapyard | Met Revision 17 32 | -11/Scrapyard | Discovered new exit (range 15) 63 | -11/Scrapyard | Entered Materials 211 | -10/Materials | Discovered new exit (range 10) 223 | -10/Materials | Entered another Materials area 223 | -9/Materials | Evolved 2 slots: Power x1, Utility x1 223 | -9/Materials | Discovered new exit (range 7) 272 | -9/Materials | Entered Storage 317 | -9/Storage | Build established: Mutant 617 | -9/Storage | Garrison activated, responded to threat 904 | -9/Storage | Met a pair of Derelict thieves 929 | -9/Storage | Garrison activated, responded to threat 997 | -9/Storage | Lost 6 parts (1p1n1u3w) 1034 | -9/Storage | Core integrity fell below 50% 1054 | -9/Storage | Core integrity fell below 20% 1120 | -9/Storage | Destroyed by L-31 Rogue with Katana Last Messages --------------- Sneak attack on K-01 Serf. Destroyed Wheel. M-13 Machinist repairs L-31 Rogue. Lgt. Armor Plating destroyed. System corrupted by crushing effect (+3). B-36 Bruiser Lgt. Treads severed. M-13 Machinist fits Backup Propulsion I on L-31 Rogue. M-13 Machinist repairs L-31 Rogue Katana. System corrupted: Energy discharge (-67). M-13 Machinist repairs L-31 Rogue Imp. Ion Engine. K-01 Serf collects debris. B-36 Bruiser destroyed. Acquired 35 matter. Acquired Hammer. System corrupted: Energy discharge (-61). Acquired Lgt. Treads. Hvy. Ion Engine destroyed. K-01 Serf cleans the Storage Shell. Map ----- +----------------------------------------------------+ | ????????????????????????????????????? | | ????????????????????????????????????? | | ????????????????????????????????????? | | ????????????????????????????????????? | | ????????????????????????????????????? | | ????????????????????????????????????? | | ????????????????????????????????????? | | ????????????????????????????????????? | | ????????????????????????????????????? | | ????????????????????????????????????? | | ????????????????????????????????????? | | ????????????????????????????????????? | | ????????????????????????????????????? | | ????????????????????????????????????? | | ????????????????????????????????????? | | ????????????????????????????????????? | | ????????????????????????????????????? | | ????????????#### ???????????????????? | | ????????????#### ???????????????????? | | ????????????+ + ???????????????????? | | ????????????## # ???????????????????? | | ??## ???????## # ???????????????????? | | ??## "????"?## # ???????????????????? | | ??## """ ## # ???????????????????? | | ??## k## # ???????????????????? | | ??## @l!##???????????????????? | | ??############ ##???????????????????? | | ?????######### ##???????????????????? | | ????##########%##???????????????????? | | ????##########=#######??????????????? | | ????## * *##!#######??????????????? | | ????##*== * ##[## " ##??????????????? | | ????##[=![**##%##"G"######## #####? | | ????##!!%==*##=##" "########+#######? | | ????###"%"####=^ =% % [ ##? | | ????##[ ][T###%= ^ [* ##? | | ????##%=% ####!^ %% ### | | ????####+##### ###+########### | | ????####=* ## !!! #!! * ## | | ??????## " !! #% """ """ ## | | ??????##"[% = !! =+%!= """ """ ## | | ??????## %! ###"T"#####!! """ """ ## | | ??????### ############ ## | | ??????### #########?########"####### | | ???????## ##????????########=####### | | ???????## # ?????????## # ##????? | | ???????## + ?????????## T # ##????? | | ??????? # # ?????????# # ##????? | | ??????? # #T?????????## !!# ####### | | ??????? + ##?????????## ! # ####### | +----------------------------------------------------+ Best States ------------- Heat Dissipation 28 Energy Generation 25 Energy Capacity 460 Matter Stores 350 Matter Capacity 350 Sight Range 16 Terrain Scan Density 10 Armor Coverage 150 Evasion (%) 55 Recoil Reduction 2 Item Schematics ----------------- None Robot Schematics ------------------ None Fabricated ------------ Nothing Repaired ---------- Nothing Studied --------- None Alien Tech Used ----------------- None Achievements -------------- You Again Challenges ------------ None Game ------ Seed SubatomicGravmagDoublenader Manual? 0 Play Time 00:16:52 Cumulative 12.8 hours Start 2026.07.06 @ 20:52:39 End 2026.07.06 @ 21:09:51 Sessions 1 Manual Loads 0 Difficulty Rogue Special Mode None Game No. 24 Rogue 24 Adventurer 0 Explorer 0 Win Type - Total 0 Types 0/0/0/0/0/0/0/0/0/0 Lore% 13 Gallery% 15 Achievement% 11 Wizard Run 0 Options --------- Layout 1 ASCII 0 Keyboard 0 Movement Mouse Keybinds 0 Fullscreen 2 Font 24/Smallcaps Map View 50x40 Zoom Use 0% Tactical HUD 0 Map Filters NONE Filters NONE Steam 1 RUN: b09a8110-e5dc-4aa2-a84d-020fd4c6933e